Cogmind - Beta 9.6 @@@ ROGUE MODE // 2020.06.04 @ 22:19:33 Player: pointone Result: Destroyed by D-53 Grenadier with Mini Grenade Launcher Performance ------------- Evolutions (1) 500 Regions Visited (3) 600 Robots Destroyed (26) 130 Value Destroyed (673) 673 Prototype IDs (0) 0 Alien Tech Used (0) 0 Bonus (0) 0 TOTAL SCORE: 1903 Bonus ------- None Cogmind --------- Core Integrity 0/400 Matter 300/300 Energy 100/100 System Corruption 6% Temperature Cool (0) Movement Core (150) Ox2 Location -9/Mines Parts ------- > --- POWER (1) -------- (None) > --- PROPULSION (4) --- (None) > --- UTILITY (2) ------ Medium Storage Unit > --- WEAPON (2) ------- (None) > --- INVENTORY (8) ---- Ion Engine Light Treads Improved Heat Sink Weight Redist. System Maneuvering Thrusters Improved Propulsion Shielding Heavy Assault Rifle Peak State ------------ > --- POWER ------------ Ion Engine > --- PROPULSION ------- Light Treads Light Treads Improved Aluminum Leg Carbon-fiber Leg > --- UTILITY ---------- Medium Storage Unit Signal Interpreter > --- WEAPON ----------- Heavy Assault Rifle Autogun > --- INVENTORY -------- Ion Engine Improved Heat Sink Weight Redist. System Maneuvering Thrusters Improved Propulsion Shielding Particle Gun Heavy Assault Rifle [Rating: 15] Favorites ----------- Power Ion Engine Engine Ion Engine Power Core Light Nuclear Core Propulsion Aluminum Leg Treads Light Treads Leg Aluminum Leg Utility Medium Storage Unit Storage Medium Storage Unit Processor Signal Interpreter Weapon Autogun Energy Gun Particle Gun Ballistic Gun Autogun Build | -11 -10 -9 -9 ------- Run | Scr Mat Mat Min Slots Evolved 2 | . . 2 . Power . | . . . . Propulsion 2 | . . 2 . Utility . | . . . . Weapon . | . . . . Parts Attached 35 | 6 17 7 5 Power 5 | 1 3 1 . Engine 2 | 1 . 1 . Core 3 | . 3 . . Reactor . | . . . . Propulsion 15 | 2 6 3 4 Treads 2 | . . 2 . Leg 13 | 2 6 1 4 Wheel . | . . . . Hover . | . . . . Flight . | . . . . Utility 4 | 1 3 . . Device . | . . . . Storage 3 | 1 2 . . Processor 1 | . 1 . . Hackware . | . . . . Protection . | . . . . Artifact . | . . . . Weapon 11 | 2 5 3 1 Energy Gun 1 | . . . 1 Energy Cannon . | . . . . Ballistic Gun 10 | 2 5 3 . Ballistic Cannon . | . . . . Launcher . | . . . . Special Weapon . | . . . . Impact Weapon . | . . . . Slashing Weapon . | . . . . Piercing Weapon . | . . . . Special Melee Weapon . | . . . . Unidentified Prototypes . | . . . . Parts Lost 18 | . 2 7 9 Power 2 | . . 1 1 Propulsion 8 | . 1 3 4 Utility 1 | . . . 1 Weapon 7 | . 1 3 3 Highest Loss Streak 9 | . 2 6 9 Average Slot Usage (%) 89 | . 96 79 84 Engine 6 | . 5 4 11 Core 5 | . 7 5 . Treads 5 | . . 9 13 Leg 22 | . 27 15 17 Storage 15 | . 19 11 11 Processor 9 | . 7 11 10 Ballistic Gun 24 | . 26 22 20 Naked Turns . | . . . . Heaviest Build 19 | 13 19 19 19 Greatest Support 48 | 20 20 40 48 Greatest Overweight (x) 4 | 3 3 4 2 Average Overweight (x) . | . . . . Largest Inventory Capacity 8 | 6 8 8 8 Average Capacity 7 | 5 7 8 8 Most Carried 8 | 1 8 8 8 Average Carried 5 | . 5 6 7 Final Capacity 8 | 6 8 8 8 Final Carried 8 | 1 8 8 7 Class Distribution -------------------- 87% | Mutant 12% | Scavenger-Mutant Dominant Class ---------------- Mutant | -10/Materials Mutant | -9/Materials Mutant | -9/Mines Resources | -11 -10 -9 -9 ----------- Run | Scr Mat Mat Min Matter Collected 1183 | 236 551 335 61 Remotely . | . . . . Salvage Created 916 | . 575 331 10 Parts 61 | . 35 26 . Haulers Intercepted 1 | . 1 . . Recyclers Shooed . | . . . . Parts Field Recycled . | . . . . Retrieved Matter . | . . . . Parts Self-Destructed . | . . . . Prevented . | . . . . Kills | -11 -10 -9 -9 ------- Run | Scr Mat Mat Min Combat Hostiles Destroyed 15 | . 8 6 1 Guns 15 | . 8 6 1 Classes Destroyed 9 | . 7 1 1 Worker 1 | . 1 . . Builder 2 | . 2 . . Hauler 1 | . 1 . . Recycler 1 | . 1 . . Operator 1 | . 1 . . Watcher 5 | . 2 3 . Grunt 11 | . 8 3 . Sentry 3 | . . 3 . Assembled 1 | . . . 1 Best Kill Streak 4 | . 4 3 1 Combat Bots Only 3 | . 3 3 1 Max Kills in Single Turn 1 | . 1 1 1 Gunslinging . | . . . . Exploded . | . . . . Melee . | . . . . Uniques/NPCs Destroyed . | . . . . Combat | -11 -10 -9 -9 -------- Run | Scr Mat Mat Min Damage Taken 2445 | . 622 867 956 Core 584 | . 170 144 270 Absorbed by Shields . | . . . . Core Remaining (%) 66 | 100 32 . . Volleys Fired 101 | . 60 33 8 Largest 2 | . 2 2 2 Hottest 88 | . 46 46 88 Shots Fired 182 | . 103 65 14 Gun 182 | . 103 65 14 Cannon . | . . . . Launcher . | . . . . Special . | . . . . Kinetic 181 | . 103 65 13 Thermal 1 | . . . 1 Explosive . | . . . . Electromagnetic . | . . . . Robot Hit Streak 9 | . 9 7 7 Robot Miss Streak 4 | . 4 2 2 Penetration Max . | . . . . Secondary Targets 2 | . . 2 . Max Gunslinging Chain 1 | . . 1 . Shots Hit Robots 105 | . 55 43 7 Core Hits 47 | . 25 18 4 Critical Hits . | . . . . Critical Kills . | . . . . Critical Parts Destroyed . | . . . . Melee Attacks . | . . . . Impact . | . . . . Slashing . | . . . . Piercing . | . . . . Sneak Attacks . | . . . . Combat Hostiles . | . . . . Follow-up Attacks . | . . . . Damage Inflicted 1506 | 4 761 647 94 Guns 1501 | . 761 647 93 Cannons . | . . . . Explosions . | . . . . Melee . | . . . . Ramming 5 | 4 . . 1 Kinetic 1501 | . 761 647 93 Thermal . | . . . . Explosive . | . . . . Electromagnetic . | . . . . Impact . | . . . . Slashing . | . . . . Piercing . | . . . . Highest Corruption 6 | . . . 6 Average Corruption 6 | . . . 6 Corruption Purged . | . . . . Overload Shots . | . . . . Overflow Damage . | . . . . Projectiles . | . . . . Explosions . | . . . . Melee . | . . . . Knockbacks . | . . . . Impact . | . . . . Kinetic . | . . . . Secondary . | . . . . Self-Inflicted Damage . | . . . . Shots . | . . . . Rammed 2 | . . . 2 Targets Rammed 3 | 1 . . 2 Kicked 1 | 1 . . . Crushed . | . . . . Highest Temperature 54 | . 40 54 42 Average Temperature 11 | . 11 11 27 Received Heat Transfer 684 | . 348 336 . Siege Activations . | . . . . Robots Corrupted . | . . . . Combat Hostiles . | . . . . Parts Fried . | . . . . Impact Corruptions . | . . . . Robots Melted . | . . . . Combat Hostiles . | . . . . Parts Melted . | . . . . Heat Transferred . | . . . . Parts Sabotaged . | . . . . Parts Stolen . | . . . . Parts Stripped . | . . . . Power Chain Reactions . | . . . . Missiles Intercepted . | . . . . Alert | -11 -10 -9 -9 ------- Run | Scr Mat Mat Min Peak Influence 199 | . 199 124 23 Average Influence 62 | . 84 63 7 Maximum Alert Level . | . . . . Low Security (%) 100 | 100 100 100 100 Level 1 . | . . . . Level 2 . | . . . . Level 3 . | . . . . Level 4 . | . . . . Level 5 . | . . . . High Security . | . . . . Max Security . | . . . . Squads Dispatched 4 | . 3 1 . Investigation 2 | . 2 . . Extermination . | . . . . Reinforcement 2 | . 1 1 . Assault . | . . . . Garrison . | . . . . Intercept . | . . . . Construction Impeded . | . . . . Haulers Reinforced . | . . . . Stealth | -11 -10 -9 -9 --------- Run | Scr Mat Mat Min Distress Signals 4 | . 3 1 . Communications Jammed . | . . . . Distress Signals . | . . . . Times Spotted 37 | . 19 15 3 Peak Tracking Total 5 | . 4 5 2 Tactical Retreats 2 | . . 2 . Traps | -11 -10 -9 -9 ------- Run | Scr Mat Mat Min Traps Triggered 8 | . 6 2 . Indirectly . | . . . . Trap Hack Attempts . | . . . . Triggered . | . . . . Disarmed . | . . . . Reprogrammed . | . . . . Reused . | . . . . Traps Extracted . | . . . . Installed . | . . . . Triggered . | . . . . Machines | -11 -10 -9 -9 ---------- Run | Scr Mat Mat Min Machines Disabled 1 | . . 1 . Max in Single Turn 1 | . . 1 . Machines Sabotaged . | . . . . Garrisons Compromised . | . . . . Overloaded Fab Kills . | . . . . Fab Network Shutdowns . | . . . . Hacking | -11 -10 -9 -9 --------- Run | Scr Mat Mat Min Machines Accessed 9 | . 7 2 . Terminals 7 | . 6 1 . Fabricators . | . . . . Repair Stations 2 | . 1 1 . Recycling Units . | . . . . Scanalyzers . | . . . . Garrison Access . | . . . . Total Hacks 16 | . 11 5 . Successful 7 | . 5 2 . Failed 9 | . 6 3 . Catastrophic 1 | . 1 . . Database Lockouts . | . . . . Manual 4 | . 3 1 . Terminals 11 | . 8 3 . Fabricators . | . . . . Repair Stations 5 | . 3 2 . Recycling Units . | . . . . Scanalyzers . | . . . . Garrison Access . | . . . . Terminal Hacks 5 | . 3 2 . Robot Analysis 1 | . 1 . . Unreport Threat 2 | . 1 1 . Recall Investigation 1 | . . 1 . Zone Layout 1 | . 1 . . Fabricator Hacks . | . . . . Repair Station Hacks 2 | . 2 . . Scan Component 1 | . 1 . . Repair 1 | . 1 . . Recycling Unit Hacks . | . . . . Scanalyzer . | . . . . Garrison Access Hacks . | . . . . Unauthorized Hacks . | . . . . Terminals . | . . . . Fabricators . | . . . . Repair Stations . | . . . . Recycling Units . | . . . . Scanalyzers . | . . . . Garrison Access . | . . . . Data Cores Recovered 1 | . 1 . . Used . | . . . . Hacking Detections 7 | . 6 1 . Full Trace Events . | . . . . Feedback Events . | . . . . Feedback Blocked . | . . . . Robot Schematics Acquired . | . . . . Robots Built . | . . . . Matter . | . . . . Time . | . . . . Total Robot Build Rating . | . . . . Part Schematics Acquired . | . . . . Parts Built . | . . . . Matter . | . . . . Time . | . . . . Total Part Build Rating . | . . . . Parts Repaired 1 | . 1 . . Time 38 | . 38 . . Parts Recycled . | . . . . Recycled Matter . | . . . . Retrieved Matter . | . . . . Retrieved Components . | . . . . Parts Scanalyzed . | . . . . Part Schematics Acquired . | . . . . Parts Damaged . | . . . . Bothacking | -11 -10 -9 -9 ------------ Run | Scr Mat Mat Min Used RIF Installer . | . . . . Robots Hacked . | . . . . Non-combat . | . . . . Combat . | . . . . Robot Hacks Applied . | . . . . Relay Couplers Released . | . . . . Robots Rewired . | . . . . Allies Hacked . | . . . . Hacks Repelled . | . . . . Allies | -11 -10 -9 -9 -------- Run | Scr Mat Mat Min Total Allies . | . . . . Largest Group . | . . . . Highest-Rated Group . | . . . . Highest-Rated Ally . | . . . . Total Orders . | . . . . Ally Attacks . | . . . . Total Damage . | . . . . Kills . | . . . . Allies Corrupted . | . . . . Allies Melted . | . . . . Intel | -11 -10 -9 -9 ------- Run | Scr Mat Mat Min Robot Analysis Total 1 | . 1 . . Derelict Logs Recovered 2 | . . . 2 Drone Launches . | . . . . Drone Recoveries . | . . . . Exploration | -11 -10 -9 -9 ------------- Run | Scr Mat Mat Min Turns Passed 1773 | 81 907 500 285 Spaces Moved 1077 | 59 555 279 184 Core 15 | 9 1 4 1 Treads 218 | . . 137 81 Legs 844 | 50 554 138 102 Wheels . | . . . . Hover . | . . . . Flight . | . . . . Fastest Speed 50 | 50 120 120 120 Average Speed 128 | 119 120 141 137 Slowest Speed 250 | 200 200 250 160 Overloaded Moves . | . . . . Propulsion Burnouts . | . . . . Robots Hopped . | . . . . Cave-ins Triggered 1 | . . . 1 Exploration Rate (%) 41 | 4 85 28 47 Regions Visited 3 Branch Regions 1 Pre-discovered Areas . | . . . . Known Exits Taken 2 | . 1 1 . Unknown Exits Taken 1 | 1 . . . Scrap Searched 1 | . . . 1 Spaces Dug . | . . . . Terrain Destroyed . | . . . . Melee . | . . . . Projectile . | . . . . AOE . | . . . . Actions | -11 -10 -9 -9 --------- Run | Scr Mat Mat Min Total 1296 | 66 696 331 203 Wait 61 | . 55 6 . Move 1074 | 58 554 278 184 Hop . | . . . . Pick Up 14 | 1 6 6 1 Fast Attach 24 | 6 13 2 3 Attach 7 | . . 5 2 Detach 2 | . 1 . 1 Swap 4 | . 4 . . Drop 6 | . 3 1 2 Fire 101 | . 60 33 8 Melee . | . . . . Ram . | . . . . Kick 1 | 1 . . . Crush 2 | . . . 2 Escape Stasis . | . . . . Rewire . | . . . . Trap . | . . . . Miscellaneous . | . . . . Route ------- -11/Scrapyard -10/Materials (discovered 3 exits: *Mat x3) -9/Materials (discovered 2 exits: *Mat / *Min) -9/Mines (discovered 2 exits: *Mat x2) History --------- Turn | Location | Event 18 | -11/Scrapyard | Discovered new exit (range 16) 82 | -11/Scrapyard | Entered Materials 311 | -10/Materials | Build established: Mutant 383 | -10/Materials | Discovered new exit (range 15) 440 | -10/Materials | Core integrity fell below 50% 479 | -10/Materials | Identified exit to Materials 706 | -10/Materials | Repaired Lgt. Nuclear Core 772 | -10/Materials | Discovered exit to Materials (range 15) 951 | -10/Materials | Discovered exit to Materials (range 13) 989 | -10/Materials | Entered another Materials area 989 | -9/Materials | Evolved 2 slots: Propulsion x2 1265 | -9/Materials | Lost 6 parts (1p3n2w) 1420 | -9/Materials | Discovered new exit (range 16) 1454 | -9/Materials | Identified exit to Materials 1477 | -9/Materials | Discovered new exit (range 5) 1481 | -9/Materials | Identified exit to Mines 1489 | -9/Materials | Entered Mines 1491 | -9/Mines | Met a Derelict bent on vengeance 1500 | -9/Mines | Assembled infested the area 1505 | -9/Mines | Assisted by a Guerilla fighting off Assembled 1561 | -9/Mines | Discovered exit to Materials (range 5) 1755 | -9/Mines | Core integrity fell below 50% 1765 | -9/Mines | Crushed by falling debris 1765 | -9/Mines | Core integrity fell below 20% 1774 | -9/Mines | Destroyed by D-53 Grenadier with Mini Grenade Launcher Last Messages --------------- Dropped Ion Engine. Acquired Ion Engine. The unstable cave ceiling collapses. Hvy. Assault Rifle destroyed. Aluminum Leg destroyed. Imp. Aluminum Leg destroyed. The unstable cave ceiling collapses. Signal Interpreter destroyed. The unstable cave ceiling collapses. Crushed by falling debris. Aluminum Leg destroyed. System corrupted by crushing effect (+1). Particle Gun destroyed. System corrupted by crushing effect (+4). Autogun destroyed. System corrupted by crushing effect (+1). The unstable cave ceiling collapses. Ion Engine destroyed. Carbon-fiber Leg destroyed. The unstable cave ceiling collapses. Map ----- +----------------------------------------------------+ | | | | | ?????????????????????????????????????????????????? | | ?????????????????????????????????????????????????? | | ?????????????????????????????????????????????????? | | ?????????????????????????????????????????????????? | | ?????????????????????????????????????????????????? | | ?????????????????????????????????????????????????? | | ????????????????????? #?????????????????????????? | | ????????????????????? #?????????????????????????? | | ????????????????????? #?????????????????????????? | | ???????????????????? #?????????????????????????? | | ???????????????????? #?????????????????????????? | | ????????????????????# #?????????????????????????? | | ??????????#######??## ##??###???????????????????? | | ?????????## #### ### ##??????????????????? | | ????????## ## #??????????????????? | | ????????# #??????????????????? | | ????????## # # #???????????????????? | | ????????# d #????????????????????? | | ????????# ##???????????????????? | | ????????# %# ## d * #???????????????????? | | ????????## # ##??????????????????? | | ?????????## *%###????????????????? | | ??????????# # = ##???????????????? | | ????####??# #### # @ < #???????????????? | | ???## ???# #??### #??????????????? | | ???# ##### #????# ??????????? | | ???# #????## ## t ?????????? | | ???# #?????## # ####??? ### ?????????? | | ???#!###### #?????########?????????????????????? | | ???#%###? # #??????????????????????????????????? | | ???#=# # # ##??????????????????????????????????? | | ??#*# ? #???????????????????????????????????? | | # ## #####?##???????????????????????????????????? | | # # #???????????????????????????????????????? | | # # # ##???????????????????????????????????????? | | ## #????????????????????????????????????????? | | ?## #########????????????????????????????????? | | ??# ##???????????????????????????????? | | ?# #???????????????????????????????? | | ?#### ### #???????????????????????????????? | | ????# ##?# ##??????????????????????????????? | | ????# #??## ## ?????????????????????????????? | | ???# ???## ## #############??###??????????? | | ???# ????# ## ### ##?????????? | | ???# #???## ## ##### # | | ???## ##????# ############# #? | | ????#####?# ### #??????????# #???? | | ??????????# #???#####??# ## ## #????? | +----------------------------------------------------+ Best States ------------- Heat Dissipation 28 Energy Generation 14 Energy Capacity 250 Matter Stores 337 Matter Capacity 350 Sight Range 16 Terrain Scan Density 10 Evasion (%) 40 Recoil Reduction 2 Item Schematics ----------------- None Robot Schematics ------------------ None Fabricated ------------ Nothing Alien Tech Used ----------------- None Achievements -------------- None Challenges ------------ None Game ------ Seed PropulsionDroneApparatus Manual? 0 Play Time 00:26:57 Cumulative 13.2 hours Start 2020.06.04 @ 18:40:58 End 2020.06.04 @ 22:19:33 Sessions 2 Manual Loads 0 Difficulty Rogue Special Mode None Game No. 13 Rogue 13 Adventurer 0 Explorer 0 Win Type - Total 0 Types 0/0/0/0/0/0/0 Lore% 11 Gallery% 26 Achievement% 23 Wizard Run 0 Options --------- ASCII 0 Keyboard 1 Movement Vi Keybinds 0 Fullscreen 1 Font 18/SmallcapsGlow Map View 76x50 Tactical HUD 0 Map Filters NONE Filters NONE Steam 0 RUN: 1284f5e6-925e-4920-bf63-0bbd8069e8c2